bitfinex/quotes_BTCUSD_20250615
["timestamp","ask_amount","ask_price","bid_price","bid_amount"]
[1750002238684,1.44238378,105810.0,105800.0,0.29008316]
[1750002238941,1.44238378,105810.0,105800.0,0.10104725]
[1750002239153,6.68864412,105810.0,105800.0,0.10104725]
[1750002239606,6.15239278,105810.0,105800.0,0.10104725]
[1750002239829,5.95791278,105810.0,105800.0,0.10104725]
[1750002240051,6.15139278,105810.0,105800.0,0.10104725]
[1750002240270,6.14839278,105810.0,105800.0,0.10004725]
[1750002240481,5.95491278,105810.0,105800.0,0.10004725]
[1750002240692,6.14943278,105810.0,105800.0,0.10104725]
[1750002245069,6.82120656,105810.0,105800.0,0.10104725]
[1750002248960,6.82120656,105810.0,105800.0,0.29008316]
[1750002249186,6.62768656,105810.0,105800.0,0.29008316]
[1750002249403,6.83065692,105810.0,105800.0,0.29953486]
[1750002249634,6.43866851,105810.0,105800.0,0.29953486]
[1750002249865,1.29253631,105810.0,105800.0,0.33483746]
[1750002250094,1.28308577,105810.0,105800.0,0.33483746]
[1750002250326,1.29253631,105810.0,105800.0,0.33483746]
[1750002250546,1.88709833,105810.0,105800.0,0.33483746]
[1750002250758,1.38868553,105810.0,105800.0,0.33483746]
[1750002250983,1.28299323,105810.0,105800.0,0.33483746]
[1750002251244,1.08947323,105810.0,105800.0,0.35033746]
[1750002251448,1.08947305,105810.0,105800.0,0.35033746]
[1750002251656,1.16794356,105810.0,105800.0,0.35033746]
[1750002252079,1.17739374,105810.0,105800.0,0.35033746]
[1750002252792,1.18684401,105810.0,105800.0,0.35033746]
[1750002252983,1.11954006,105810.0,105800.0,0.35033746]
[1750002253258,1.21568928,105810.0,105800.0,0.35033746]
[1750002253492,1.22513973,105810.0,105800.0,0.35033746]
[1750002253722,1.22513973,105810.0,105800.0,0.33483746]
[1750002254226,1.21568928,105810.0,105800.0,0.33483746]
[1750002254446,1.02216928,105810.0,105800.0,0.33483746]
[1750002254680,1.22513973,105810.0,105800.0,0.31843746]
[1750002254941,1.23459027,105810.0,105800.0,0.31843746]
[1750002255201,0.69788166,105810.0,105800.0,0.31843746]
[1750002255432,1.23459027,105810.0,105800.0,0.31843746]
[1750002256219,1.2440409,105810.0,105800.0,0.31843746]
[1750002256451,1.23459027,105810.0,105800.0,0.31843746]
[1750002256885,1.12899051,105810.0,105800.0,0.31843746]
[1750002257101,1.11954015,105810.0,105800.0,0.31843746]
[1750002257540,1.12899069,105810.0,105800.0,0.31843746]
[1750002258377,1.13844141,105810.0,105800.0,0.31843746]
[1750002258586,1.12899069,105810.0,105800.0,0.31843746]
[1750002258795,1.23459054,105810.0,105800.0,0.31843746]
[1750002259014,1.24969054,105810.0,105800.0,0.31843746]
[1750002259227,1.24023991,105810.0,105800.0,0.31843746]
[1750002259437,1.23078937,105810.0,105800.0,0.31843746]
[1750002259641,1.21568937,105810.0,105800.0,0.31843746]
[1750002259848,1.12899069,105810.0,105800.0,0.31843746]
[1750002260626,1.11954015,105810.0,105800.0,0.31843746]
[1750002261696,1.1289906,105810.0,105800.0,0.31843746]
[1750002262225,1.11954015,105810.0,105800.0,0.31843746]
[1750002262425,0.58283154,105810.0,105800.0,0.31843746]
[1750002262587,1.11954015,105810.0,105800.0,0.31843746]
[1750002262816,1.12899069,105810.0,105800.0,0.31843746]
[1750002262966,1.23459063,105810.0,105800.0,0.31843746]
[1750002263166,1.22513991,105810.0,105800.0,0.31843746]
[1750002263483,1.25059063,105810.0,105800.0,0.31843746]
[1750002263890,1.24113991,105810.0,105800.0,0.31843746]
[1750002264359,1.1449906,105810.0,105800.0,0.31843746]
[1750002264573,1.15444132,105810.0,105800.0,0.31843746]
[1750002267344,1.34345937,105810.0,105800.0,0.31843746]
[1750002267488,1.36951018,105810.0,105800.0,0.31843746]
[1750002267843,1.3695109,105810.0,105800.0,0.30898629]
[1750002268003,1.44675931,105810.0,105800.0,0.30898629]
[1750002268207,1.44675931,105810.0,105800.0,0.29953486]
[1750002268410,1.44675931,105810.0,105800.0,0.30898638]
[1750002269054,1.41834831,105810.0,105800.0,0.30898638]
[1750002269687,1.40889759,105810.0,105800.0,0.30898638]
[1750002271249,1.39944678,105810.0,105800.0,0.29953486]
[1750002271472,1.39944678,105810.0,105800.0,0.30898647]
[1750002271697,1.38999588,105810.0,105800.0,0.30898647]
[1750002271973,1.48623764,105810.0,105800.0,0.30898647]
[1750002272516,1.51464964,105810.0,105800.0,0.29953486]
[1750002273559,1.51464964,105810.0,105800.0,0.29008316]
[1750002273793,1.51464964,105810.0,105800.0,0.10104725]
[1750002274022,6.22465864,105810.0,105800.0,0.10104725]
[1750002274929,6.89595919,105810.0,105800.0,0.10104725]
[1750002276508,6.79980997,105810.0,105800.0,0.10104725]
[1750002278459,6.8281303,105810.0,105800.0,0.10104725]
[1750002280807,6.79980997,105810.0,105800.0,0.10104725]
[1750002284529,6.79972997,105810.0,105800.0,0.10104725]
[1750002286066,6.8280503,105810.0,105800.0,0.10104725]
[1750002286280,6.92419952,105810.0,105800.0,0.10104725]
[1750002287592,6.89587919,105810.0,105800.0,0.10104725]
[1750002287779,6.92419952,105810.0,105800.0,0.10104725]
[1750002291571,6.92421782,105810.0,105800.0,0.10104725]
[1750002304480,6.96195588,105810.0,105800.0,0.10104725]
[1750002308396,6.86580666,105810.0,105800.0,0.10104725]
[1750002312537,5.6577975,105810.0,105800.0,0.10104725]
[1750002312693,6.83746803,105810.0,105800.0,0.10104725]
[1750002312904,6.86580796,105810.0,105800.0,0.10104725]
[1750002313902,6.67236796,105810.0,105800.0,0.10104725]
[1750002314118,6.7956699,105810.0,105800.0,0.10104725]
[1750002314520,6.6020299,105810.0,105800.0,0.10104725]
[1750002314739,6.7956699,105810.0,105800.0,0.10104725]
[1750002316751,5.39402074,105810.0,105800.0,0.10104725]
[1750002316962,6.7956299,105810.0,105800.0,0.10104725]
[1750002322381,6.76728997,105810.0,105800.0,0.10104725]
[1750002323469,6.78288997,105810.0,105800.0,0.10104725]
[1750002323923,6.79908997,105810.0,105800.0,0.10104725]
[1750002324334,6.89523919,105810.0,105800.0,0.10104725]
[1750002326439,6.89511919,105810.0,105800.0,0.10104725]
[1750002328490,0.35890439,105790.0,105770.0,0.73750577]
[1750002328703,0.52219681,105790.0,105780.0,0.19854418]
[1750002328913,0.5127443,105790.0,105780.0,0.20799704]
[1750002329146,0.51274421,105790.0,105780.0,0.20799704]
[1750002329754,0.49384,105790.0,105780.0,0.20799704]
[1750002329964,1.10729655,105790.0,105780.0,0.20799704]
[1750002330575,1.12720094,105790.0,105780.0,0.20799704]
[1750002330776,1.11974861,105790.0,105780.0,0.20799704]
[1750002330986,1.12820085,105790.0,105780.0,0.20799704]
[1750002331307,1.12920085,105790.0,105780.0,0.20799704]
[1750002331435,1.13120085,105790.0,105780.0,0.22169704]
[1750002332644,1.14065318,105790.0,105780.0,0.22169704]
[1750002332822,1.13120085,105790.0,105780.0,0.22169704]
[1750002333261,1.12174861,105790.0,105780.0,0.22169704]
[1750002333439,1.13120085,105790.0,105780.0,0.22169704]
[1750002333642,1.12174861,105790.0,105780.0,0.22169704]
[1750002333853,1.13120085,105790.0,105780.0,0.22169704]
[1750002334264,1.12174861,105790.0,105780.0,0.22169704]
[1750002334481,1.13120076,105790.0,105780.0,0.22169704]
[1750002334981,1.13120076,105790.0,105780.0,0.20799704]
[1750002335181,1.12174861,105790.0,105780.0,0.20799704]
[1750002335993,1.13120076,105790.0,105780.0,0.20799704]
[1750002336403,1.20910015,105790.0,105780.0,0.20799704]
[1750002340292,1.199648,105790.0,105780.0,0.20799704]
[1750002340579,1.12174861,105790.0,105780.0,0.20799704]
[1750002343486,1.11229655,105790.0,105780.0,0.20799704]
[1750002343695,0.50829197,105790.0,105780.0,0.20799704]
[1750002343901,1.10284458,105790.0,105780.0,0.20799704]
[1750002344528,1.10280458,105790.0,105780.0,0.20799704]
[1750002345989,0.4988,105790.0,105780.0,0.20799704]
[1750002346232,1.10280458,105790.0,105780.0,0.20799704]
[1750002353072,1.11800458,105790.0,105780.0,0.20799704]
[1750002354798,0.96420458,105790.0,105780.0,0.20799704]
[1750002354974,1.11800458,105790.0,105780.0,0.20799704]
[1750002359400,1.13330458,105790.0,105780.0,0.20799704]
[1750002360619,0.5293,105790.0,105780.0,0.20799704]
[1750002360824,0.005,105790.0,105780.0,0.92964338]
[1750002361034,0.005,105790.0,105780.0,0.94418423]
[1750002361243,0.005,105790.0,105780.0,0.98203471]
[1750002361460,0.005,105790.0,105780.0,1.68245502]
[1750002361688,0.005,105790.0,105780.0,2.13011914]
[1750002362096,0.85780458,105830.0,105820.0,0.21734913]
[1750002362306,0.70400458,105830.0,105820.0,0.21734913]
[1750002363335,0.70700458,105830.0,105820.0,0.21734913]
[1750002364561,0.103,105830.0,105820.0,0.23508628]
[1750002364769,0.70700458,105830.0,105820.0,0.21734913]
[1750002365027,0.70700458,105830.0,105820.0,0.23508579]
[1750002365230,0.70700458,105830.0,105820.0,0.23508546]
[1750002365231,0.103,105830.0,105820.0,0.23508546]
[1750002365438,0.70700458,105830.0,105820.0,0.23508471]
[1750002365646,0.70700458,105830.0,105820.0,0.23508467]
[1750002365853,0.70700458,105830.0,105820.0,0.23508392]
[1750002366070,0.103,105830.0,105820.0,0.95673019]
[1750002366290,0.103,105830.0,105820.0,1.12503104]
[1750002366501,0.103,105830.0,105820.0,1.13561368]
[1750002366710,0.103,105830.0,105820.0,1.17337215]
[1750002366928,0.103,105830.0,105820.0,1.19109335]
[1750002367137,0.1,105830.0,105820.0,1.19109332]
[1750002367343,0.101,105830.0,105820.0,1.13661368]
[1750002367780,0.101,105830.0,105820.0,1.15433564]
[1750002368034,0.101,105830.0,105820.0,1.15433538]
[1750002368248,0.101,105830.0,105820.0,0.5326091]
[1750002368471,0.102,105830.0,105820.0,1.13761368]
[1750002368678,0.102,105830.0,105820.0,1.15533604]
[1750002368872,0.101,105830.0,105820.0,1.06881582]
[1750002369069,0.101,105830.0,105820.0,1.08653839]
[1750002369311,0.101,105830.0,105820.0,1.06201509]
[1750002369511,0.101,105830.0,105820.0,1.05149846]
[1750002369712,0.102,105830.0,105820.0,0.51529174]
[1750002370035,0.102,105830.0,105820.0,0.53280863]
[1750002370246,0.102,105830.0,105820.0,0.53280866]
[1750002370464,0.102,105830.0,105820.0,0.5328095]
[1750002370712,0.102,105830.0,105820.0,0.51529174]
[1750002371350,0.102,105830.0,105820.0,0.36153174]
[1750002371589,0.102,105830.0,105820.0,0.55493174]
[1750002372773,0.102,105830.0,105820.0,1.09113846]
[1750002373002,0.102,105830.0,105820.0,1.10860999]
[1750002373228,0.102,105830.0,105820.0,0.91521]
[1750002373470,0.102,105830.0,105820.0,1.10857]
[1750002373681,0.102,105830.0,105820.0,1.10857009]
[1750002373891,0.102,105830.0,105820.0,1.1085701]
[1750002374098,0.102,105830.0,105820.0,1.09109846]
[1750002381546,0.63820672,105830.0,105820.0,0.49409174]
[1750002381754,0.66820672,105830.0,105820.0,0.49409174]
[1750002382010,0.132,105830.0,105820.0,0.49409174]
[1750002382239,0.66820672,105830.0,105820.0,0.47955089]
[1750002382469,0.132,105830.0,105820.0,0.47955089]
[1750002383377,0.132,105830.0,105820.0,0.32559089]
[1750002383593,0.132,105830.0,105820.0,0.47955089]
[1750002385171,0.132,105830.0,105820.0,0.4972773]
[1750002385450,0.132,105830.0,105820.0,0.49727728]
[1750002385659,0.132,105830.0,105820.0,0.49727724]
[1750002385842,0.132,105830.0,105820.0,0.47955089]
[1750002386620,0.132,105830.0,105820.0,0.49727719]
[1750002386824,0.132,105830.0,105820.0,0.49727727]
[1750002387025,0.132,105830.0,105820.0,0.47955089]
[1750002387240,0.132,105830.0,105820.0,0.49727714]
[1750002387451,0.132,105830.0,105820.0,0.4972772]
[1750002387673,0.132,105830.0,105820.0,0.4972771]
[1750002387875,0.132,105830.0,105820.0,0.49727714]
[1750002388123,0.132,105830.0,105820.0,0.497277]
[1750002388294,0.132,105830.0,105820.0,0.47955089]
[1750002388878,0.132,105830.0,105820.0,0.4972771]
[1750002389083,0.132,105830.0,105820.0,0.49672648]
[1750002389255,0.132,105830.0,105820.0,0.52481908]
[1750002389454,0.132,105830.0,105820.0,0.52481914]
[1750002389654,0.132,105830.0,105820.0,0.50709286]
[1750002389876,0.132,105830.0,105820.0,0.52481897]
[1750002390082,0.132,105830.0,105820.0,0.5248188]
[1750002390280,0.132,105830.0,105820.0,0.50709286]
[1750002390497,0.132,105830.0,105820.0,0.52481889]
[1750002390769,0.132,105830.0,105820.0,0.52481884]
[1750002390913,0.132,105830.0,105820.0,0.52481881]
[1750002391119,0.132,105830.0,105820.0,0.52481884]
[1750002391315,0.132,105830.0,105820.0,0.52481885]
[1750002391899,0.132,105830.0,105820.0,0.50709286]
[1750002392075,0.132,105830.0,105820.0,0.52481892]
[1750002392312,0.132,105830.0,105820.0,0.52481884]
[1750002392727,0.132,105830.0,105820.0,0.52481891]
[1750002392934,0.132,105830.0,105820.0,0.52481888]
[1750002393146,0.132,105830.0,105820.0,0.52481893]
[1750002393354,0.132,105830.0,105820.0,0.52461908]
[1750002393564,0.132,105830.0,105820.0,0.52461897]
[1750002393747,0.132,105830.0,105820.0,0.52461919]
[1750002393986,0.132,105830.0,105820.0,0.50710348]
[1750002394410,0.132,105830.0,105820.0,0.52482986]
[1750002394620,0.132,105830.0,105820.0,0.50710348]
[1750002394851,0.132,105830.0,105820.0,0.52479713]
[1750002395065,0.132,105830.0,105820.0,0.52479758]
[1750002395506,0.132,105830.0,105820.0,0.52481057]
[1750002395715,0.132,105830.0,105820.0,0.52481076]
[1750002396409,0.132,105830.0,105820.0,0.35335655]
[1750002396725,0.132,105830.0,105820.0,0.52477102]
[1750002396949,0.73538374,105830.0,105820.0,0.3710507]
[1750002397155,0.73538374,105830.0,105820.0,0.50707655]
[1750002397672,0.73538374,105830.0,105820.0,0.5247704]
[1750002397872,0.73538374,105830.0,105820.0,0.52477023]
[1750002398094,0.132,105830.0,105820.0,0.52477059]
[1750002398299,0.132,105830.0,105820.0,0.50707655]
[1750002398300,0.73538374,105830.0,105820.0,0.50707655]
[1750002398495,0.73538374,105830.0,105820.0,0.52477087]
[1750002398727,0.73538374,105830.0,105820.0,0.52477073]
[1750002398925,0.73538374,105830.0,105820.0,0.50707655]
[1750002399124,0.73538374,105830.0,105820.0,0.56252921]
[1750002399337,0.73538374,105830.0,105820.0,0.56252322]
[1750002399760,0.73538374,105830.0,105820.0,0.56252335]
[1750002399961,0.73538374,105830.0,105820.0,0.56252333]
[1750002400600,0.73538374,105830.0,105820.0,0.56252334]
[1750002401026,0.73538374,105830.0,105820.0,0.54483502]
[1750002401238,0.73538374,105830.0,105820.0,0.52476502]
[1750002401451,0.132,105830.0,105820.0,0.52476502]
[1750002401662,0.73538374,105830.0,105820.0,0.50707655]
[1750002401882,0.73538374,105830.0,105820.0,0.52476667]
[1750002402092,0.73538374,105830.0,105820.0,0.50707655]
[1750002402323,0.73538374,105830.0,105820.0,0.5247662]
[1750002402523,0.73538374,105830.0,105820.0,0.52476598]
[1750002402754,0.73538374,105830.0,105820.0,0.50707655]
[1750002402963,0.73538374,105830.0,105820.0,0.52476583]
[1750002403243,0.132,105830.0,105820.0,0.52476571]
[1750002403476,0.132,105830.0,105820.0,1.12814852]
[1750002403712,0.132,105830.0,105820.0,0.54483502]
[1750002403938,0.132,105830.0,105820.0,0.56252322]
[1750002404167,0.132,105830.0,105820.0,0.56252311]
[1750002404665,0.132,105830.0,105820.0,0.5625234]
[1750002404845,0.132,105830.0,105820.0,0.52476497]
[1750002405097,0.132,105830.0,105820.0,0.54483502]
[1750002405314,0.132,105830.0,105820.0,0.56252293]
[1750002405530,0.132,105830.0,105820.0,0.54483502]
[1750002405760,0.132,105830.0,105820.0,0.56252323]
[1750002406187,0.132,105830.0,105820.0,0.56252297]
[1750002406397,0.132,105830.0,105820.0,0.54483502]
[1750002406819,0.132,105830.0,105820.0,0.51651874]
[1750002407056,0.132,105830.0,105820.0,0.54484946]
[1750002407282,0.132,105830.0,105820.0,0.56253747]
[1750002407540,0.132,105830.0,105820.0,0.56253692]
[1750002407795,0.132,105830.0,105820.0,0.54484946]
[1750002408043,0.132,105830.0,105820.0,0.56257808]
[1750002408286,0.132,105830.0,105820.0,0.54484946]
[1750002408580,0.132,105830.0,105820.0,0.56257808]
[1750002408809,0.132,105830.0,105820.0,0.53424736]
[1750002409037,0.132,105830.0,105820.0,0.5625859]
[1750002409267,0.73538374,105830.0,105820.0,0.56258598]
[1750002409513,0.73538374,105830.0,105820.0,0.54485696]
[1750002410426,0.73538374,105830.0,105820.0,0.56258694]
[1750002410637,0.73538374,105830.0,105820.0,0.5251491]
[1750002410865,0.73538374,105830.0,105820.0,0.52515029]
[1750002411081,0.73538374,105830.0,105820.0,0.52515059]
[1750002411297,0.73538374,105830.0,105820.0,0.52512755]
[1750002411516,0.73538374,105830.0,105820.0,0.49678933]
[1750002411734,0.73538374,105830.0,105820.0,0.49678882]
[1750002411922,0.73538374,105830.0,105820.0,0.47908027]
[1750002412427,0.73538374,105830.0,105820.0,0.49678887]
[1750002412644,0.73538374,105830.0,105820.0,0.47908027]
[1750002413512,0.132,105830.0,105820.0,0.47908027]
[1750002413742,0.73538374,105830.0,105820.0,0.47908027]
[1750002414279,0.73538374,105830.0,105820.0,0.22879851]
[1750002414280,2.01330822,105830.0,105820.0,0.22879851]
[1750002414507,1.39102688,105830.0,105820.0,0.22879851]
[1750002414752,1.34276759,105830.0,105820.0,0.22879851]
[1750002414974,1.26717814,105830.0,105820.0,0.22879851]
[1750002415440,1.27662707,105830.0,105820.0,0.22879851]
[1750002415655,1.26717814,105830.0,105820.0,0.22879851]
[1750002416089,1.2577293,105830.0,105820.0,0.22879851]
[1750002416568,1.25772912,105830.0,105820.0,0.22879851]
[1750002416996,1.19088636,105830.0,105820.0,0.22879851]
[1750002419178,1.18143769,105830.0,105820.0,0.22879851]
[1750002419824,1.16254098,105830.0,105820.0,0.22879851]
[1750002420033,1.17198929,105830.0,105820.0,0.22879851]
[1750002420656,1.18143787,105830.0,105820.0,0.22879851]
[1750002421531,1.20525109,105830.0,105820.0,0.22879851]
[1750002421751,1.21392809,105830.0,105820.0,0.22879851]
[1750002422889,1.37909826,105830.0,105820.0,0.02145]
[1750002423110,1.37909826,105830.0,105820.0,0.22934957]
[1750002423750,1.37879826,105830.0,105820.0,0.22934957]
[1750002424215,1.37879826,105830.0,105820.0,0.21045018]
[1750002424436,1.36934942,105830.0,105820.0,0.21045018]
[1750002424864,1.46549864,105830.0,105820.0,0.21045018]
[1750002425078,1.46549864,105830.0,105820.0,0.2199001]
[1750002425332,1.45604971,105830.0,105820.0,0.2199001]
[1750002426415,1.45604971,105830.0,105820.0,0.22934993]
[1750002426626,1.45614225,105830.0,105820.0,0.012]
[1750002426834,1.44669323,105830.0,105820.0,0.012]
[1750002428580,6.15670223,105830.0,105820.0,0.012]
[1750002428789,6.04254223,105830.0,105820.0,0.012]
[1750002428992,6.22503023,105830.0,105820.0,0.012]
[1750002429212,6.32117945,105830.0,105820.0,0.012]
[1750002429624,6.32017945,105830.0,105820.0,0.007]
[1750002429834,0.5384501,105820.0,105810.0,0.20791955]
[1750002430063,5.81670008,105820.0,105810.0,0.20796682]
[1750002431334,5.81670008,105820.0,105810.0,0.21741754]
[1750002431539,5.9128493,105820.0,105810.0,0.21741754]
[1750002432019,5.82814982,105820.0,105810.0,0.22241754]
[1750002432232,5.82814982,105820.0,105810.0,0.21296682]
[1750002433278,5.81870008,105820.0,105810.0,0.00504727]
[1750002434949,5.97278008,105820.0,105810.0,0.00504727]
[1750002436611,5.81870008,105820.0,105810.0,0.00504727]
[1750002436822,6.1087693,105820.0,105810.0,0.00504727]
[1750002437026,6.20501106,105820.0,105810.0,0.00504727]
[1750002437461,6.23342306,105820.0,105810.0,0.00504727]
[1750002437872,6.26233504,105820.0,105810.0,0.00504727]
[1750002441135,6.26233504,105820.0,105810.0,0.02278152]
[1750002441355,6.16618582,105820.0,105810.0,0.00504727]
[1750002441561,6.16618582,105820.0,105810.0,0.02278148]
[1750002441761,6.16618582,105820.0,105810.0,0.00504727]
[1750002442208,6.16618582,105820.0,105810.0,0.02278129]
[1750002442415,6.16618582,105820.0,105810.0,0.00504727]
[1750002442619,6.26233504,105820.0,105810.0,0.00504727]
[1750002442826,6.26233504,105820.0,105810.0,0.02278129]
[1750002443671,6.26233504,105820.0,105810.0,0.02278131]
[1750002444093,6.26233504,105820.0,105810.0,0.02278132]
[1750002444301,6.26233504,105820.0,105810.0,0.02278136]
[1750002444510,6.26233504,105820.0,105810.0,0.0227814]
[1750002444718,6.26233504,105820.0,105810.0,0.00504727]
[1750002445557,6.26133504,105820.0,105810.0,0.0207821]
[1750002445764,6.26033504,105820.0,105810.0,0.01778213]
[1750002445969,6.26133504,105820.0,105810.0,0.01778213]
[1750002446176,6.26233504,105820.0,105810.0,0.01878214]
[1750002447038,6.26233504,105820.0,105810.0,0.00104727]
[1750002447270,6.26233504,105820.0,105810.0,0.01878208]
[1750002447724,6.26233504,105820.0,105810.0,0.00104727]
[1750002447965,6.26233504,105820.0,105810.0,0.01878208]
[1750002448207,6.26233504,105820.0,105810.0,0.00104727]
[1750002448422,6.26233504,105820.0,105810.0,0.01878213]
[1750002448870,6.26233504,105820.0,105810.0,0.00104727]
[1750002449070,6.26213504,105820.0,105810.0,0.01878213]
[1750002449280,6.26213504,105820.0,105810.0,0.00104727]
[1750002449491,6.26213504,105820.0,105810.0,0.01878212]
[1750002449696,6.26213504,105820.0,105810.0,0.00104727]
[1750002450326,6.26213504,105820.0,105810.0,0.01878214]
[1750002450565,6.26213504,105820.0,105810.0,0.01878207]
[1750002450774,6.06841504,105820.0,105810.0,0.00104727]
[1750002450980,6.26217504,105820.0,105810.0,0.01878188]
[1750002451190,6.26217504,105820.0,105810.0,0.01878195]
[1750002451399,6.26217504,105820.0,105810.0,0.01878186]
[1750002451608,6.26217504,105820.0,105810.0,0.01878185]
[1750002451828,6.26217504,105820.0,105810.0,0.00104727]
[1750002459294,6.29050337,105820.0,105810.0,0.00104727]
[1750002460653,6.82704435,105820.0,105810.0,0.00104727]
[1750002461513,6.82604435,105820.0,105810.0,4.727e-05]
[1750002461736,6.86386758,105820.0,105810.0,4.727e-05]
[1750002462006,0.5892105,105790.0,105780.0,0.18904414]
[1750002462228,1.34820578,105790.0,105780.0,0.2163573]
[1750002462445,1.34820578,105790.0,105780.0,0.19865916]
[1750002462655,1.34820578,105790.0,105780.0,0.21640665]
[1750002462873,1.34820578,105790.0,105780.0,0.22586008]
[1750002463086,1.34820578,105790.0,105780.0,0.22586012]
[1750002463329,1.34820578,105790.0,105780.0,0.22586013]
[1750002463556,1.34820578,105790.0,105780.0,0.21640673]
[1750002463785,1.34820578,105790.0,105780.0,0.20811256]
[1750002464005,1.34920578,105790.0,105780.0,0.23631371]
[1750002464259,1.34920578,105790.0,105780.0,0.23631343]
[1750002464498,0.39179696,105790.0,105780.0,0.22686013]
[1750002464728,0.55066144,105790.0,105780.0,0.23301873]
[1750002464949,1.28570879,105790.0,105780.0,0.25076638]
[1750002465162,0.73971584,105790.0,105780.0,0.24131335]
[1750002465389,1.26680458,105790.0,105780.0,0.22356578]
[1750002465616,1.3783538,105790.0,105780.0,0.24131344]
[1750002465865,1.3783538,105790.0,105780.0,0.22356578]
[1750002466087,1.3783538,105790.0,105780.0,0.24131371]
[1750002466303,1.36890129,105790.0,105780.0,0.22240713]
[1750002466515,1.3594487,105790.0,105780.0,0.22240713]
[1750002466745,1.3594487,105790.0,105780.0,0.22240753]
[1750002466952,1.3594487,105790.0,105780.0,0.23186102]
[1750002467168,1.3594487,105790.0,105780.0,0.23186083]
[1750002467380,1.3594487,105790.0,105780.0,0.24131414]
[1750002467604,1.3594487,105790.0,105780.0,0.24131411]
[1750002468003,1.3594487,105790.0,105780.0,0.22356605]
[1750002468259,1.36890121,105790.0,105780.0,0.25076731]
[1750002468468,1.36890121,105790.0,105780.0,0.24247222]
[1750002468678,1.36890121,105790.0,105780.0,0.26016284]
[1750002468888,1.36890121,105790.0,105780.0,0.26016271]
[1750002469074,1.36890121,105790.0,105780.0,0.26016267]
[1750002469314,1.19991226,105790.0,105780.0,0.26016195]
[1750002469526,1.39841872,105790.0,105780.0,0.26016203]
[1750002469706,1.39841872,105790.0,105780.0,0.25070917]
[1750002469978,1.3022695,105790.0,105780.0,0.25070907]
[1750002470173,1.3022695,105790.0,105780.0,0.25070904]
[1750002470416,1.3022695,105790.0,105780.0,0.25070903]
[1750002470643,1.3022695,105790.0,105780.0,0.24125602]
[1750002470913,1.3022695,105790.0,105780.0,0.24125603]
[1750002471135,1.34125603,105790.0,105780.0,0.24125607]
[1750002471353,1.33180352,105790.0,105780.0,0.21411247]
[1750002471563,1.36021952,105790.0,105780.0,0.21411247]
[1750002473459,1.36021952,105790.0,105780.0,0.2235656]
[1750002473824,1.36021952,105790.0,105780.0,0.21411247]
[1750002474227,1.36021952,105790.0,105780.0,0.22356569]
[1750002476956,1.35076693,105790.0,105780.0,0.20465916]
[1750002477283,1.34131425,105790.0,105780.0,0.00613402]
[1750002477503,1.34131425,105790.0,105780.0,0.01497949]
[1750002477735,1.34131425,105790.0,105780.0,0.20405116]
[1750002477929,1.34131425,105790.0,105780.0,0.00613402]
[1750002478719,1.34131425,105790.0,105780.0,0.19520567]
[1750002478942,1.34131425,105790.0,105780.0,0.20405116]
[1750002479167,1.34131425,105790.0,105780.0,0.21350473]
[1750002479409,1.34131425,105790.0,105780.0,0.22295811]
[1750002479658,1.34131425,105790.0,105780.0,0.21411265]
[1750002480293,0.80477327,105790.0,105780.0,0.21411265]
[1750002480503,1.29287548,105790.0,105780.0,0.22356596]
[1750002480921,1.36042543,105790.0,105780.0,0.22356596]
[1750002481473,0.76578647,105790.0,105780.0,0.22356596]
[1750002481676,1.37917008,105790.0,105780.0,0.23301909]
[1750002481876,1.36971811,105790.0,105780.0,0.22356596]
[1750002483478,1.42231047,105790.0,105780.0,0.22356596]
[1750002483702,1.42231047,105790.0,105780.0,0.21411265]
[1750002483919,1.41285779,105790.0,105780.0,0.20465925]
[1750002484525,1.41285779,105790.0,105780.0,0.21411274]
[1750002484728,0.80876686,105790.0,105780.0,0.22356596]
[1750002484981,1.41285779,105790.0,105780.0,0.22356596]
[1750002485466,1.41285779,105790.0,105780.0,0.21411274]
[1750002485888,0.80876686,105790.0,105780.0,0.21411274]
[1750002486123,1.36971794,105790.0,105780.0,0.22356596]
[1750002486539,1.36971794,105790.0,105780.0,0.21411274]
[1750002486750,1.36971794,105790.0,105780.0,0.22356614]
[1750002487894,1.36026543,105790.0,105780.0,0.22356614]
[1750002488118,1.49705465,105790.0,105780.0,0.22356614]
[1750002489495,1.49705465,105790.0,105780.0,0.20465925]
[1750002489967,1.49705465,105790.0,105780.0,0.0155876]
[1750002490187,1.49705465,105790.0,105780.0,0.20465925]
[1750002491025,1.49705465,105790.0,105780.0,0.0155876]
[1750002491224,1.49705465,105790.0,105780.0,0.00613402]
[1750002491636,2.10114558,105790.0,105780.0,0.20465925]
[1750002492041,2.10114558,105790.0,105780.0,0.0155876]
[1750002492491,2.10114558,105790.0,105780.0,0.00613402]
[1750002493674,6.90739634,105790.0,105780.0,0.00613402]
[1750002494106,6.93572467,105790.0,105780.0,0.00613402]
[1750002494526,6.9734679,105790.0,105780.0,0.00613402]
[1750002494738,6.93464467,105790.0,105780.0,0.00513402]
[1750002494998,6.93958606,105790.0,105780.0,0.00513402]
[1750002495221,6.93858606,105790.0,105780.0,0.00013402]
[1750002495678,6.94258606,105790.0,105780.0,0.00213402]
[1750002497674,5.24853405,105780.0,105770.0,0.54849747]
[1750002497889,7.41924679,105780.0,105770.0,0.54749747]
[1750002498099,7.44757512,105780.0,105770.0,0.54749747]
[1750002498306,7.44757512,105780.0,105770.0,0.55637314]
[1750002498489,7.44757512,105780.0,105770.0,0.55637318]
[1750002498736,7.44757512,105780.0,105770.0,0.54749747]
[1750002498960,7.44757512,105780.0,105770.0,0.55737409]
[1750002498961,6.71100829,105780.0,105770.0,0.55737409]
[1750002499140,6.71100829,105780.0,105770.0,0.5573741]
[1750002499348,6.71200829,105780.0,105770.0,0.5613741]
[1750002499559,6.71200829,105780.0,105770.0,0.56137409]
[1750002499783,6.71200829,105780.0,105770.0,0.55249747]
[1750002500236,6.17465531,105780.0,105770.0,0.43603405]
[1750002500443,5.608974,105780.0,105770.0,0.41788409]
[1750002500666,5.91472879,105780.0,105770.0,0.41788399]
[1750002500873,6.11120879,105780.0,105770.0,0.4178838]
[1750002501076,5.91372879,105780.0,105770.0,0.41688379]
[1750002501324,6.10936879,105780.0,105770.0,0.40400742]
[1750002501537,6.10944879,105780.0,105770.0,0.40400742]
[1750002501737,6.20959801,105780.0,105770.0,0.40500742]
[1750002502975,6.74695099,105780.0,105770.0,0.40500742]
[1750002504276,6.77537399,105780.0,105770.0,0.40500742]
[1750002504925,6.77537399,105780.0,105770.0,0.42276009]
[1750002505566,6.77537399,105780.0,105770.0,0.42276008]
[1750002505778,6.77537399,105780.0,105770.0,0.42276001]
[1750002506005,6.77537399,105780.0,105770.0,0.40500742]
[1750002507672,0.56694872,105750.0,105740.0,0.21739897]
[1750002507963,1.33637989,105750.0,105740.0,0.226169]